fUST/lending_fUST_20260523
["ID","MTS","AMOUNT","RATE_DAILY","PERIOD"]
[422850519,1779522662000,-2370.66,0.00010684,2]
[422850522,1779522662000,-3822.56,0.00010684,2]
[422850520,1779522662000,-950.0,0.00010684,2]
[422850521,1779522662000,-1906.95,0.00010684,2]
[422850524,1779522662000,-919.44,0.00010684,2]
[422850523,1779522662000,-500.0,0.00010684,2]
[422850526,1779522662000,-642.13,0.00010684,2]
[422850531,1779522662000,-500.0,0.00010684,2]
[422850533,1779522662000,-1298.03,0.00010684,2]
[422850528,1779522662000,-647.49,0.00010684,2]
[422850532,1779522662000,-500.0,0.00010684,2]
[422850525,1779522662000,-500.0,0.00010684,2]
[422850527,1779522662000,-500.0,0.00010684,2]
[422850529,1779522662000,-1534.57,0.00010684,2]
[422850534,1779522662000,-592.52,0.00010684,2]
[422850536,1779522662000,-11669.11,0.00010684,2]
[422850535,1779522662000,-3632.74,0.00010684,2]
[422850537,1779522662000,-1407.6,0.00010684,2]
[422850538,1779522662000,-1016.89,0.00010684,2]
[422850539,1779522662000,-500.0,0.00010684,2]
[422850541,1779522662000,-3803.04,0.00010684,2]
[422850563,1779522662000,-500.0,0.00010684,2]
[422850584,1779522662000,-891.69,0.00010684,2]
[422850568,1779522662000,-560.81,0.00010684,2]
[422850601,1779522662000,-388.680326,0.00010954,2]
[422850605,1779522662000,-623.93,0.00010958,2]
[422850602,1779522662000,-267.995232,0.00010954,2]
[422850604,1779522662000,-934.38,0.00010958,2]
[422850609,1779522662000,-1764.2063,0.00010958,2]
[422850608,1779522662000,-882.1112,0.00010958,2]
[422850606,1779522662000,-500.0,0.00010958,2]
[422850603,1779522662000,-187.037149,0.00010954,2]
[422850607,1779522662000,-1764.2063,0.00010958,2]
[422850610,1779522662000,-661.5754,0.00010958,2]
[422850616,1779522662000,-521.99,0.00010958,2]
[422850599,1779522662000,-173.443318,0.00010954,2]
[422850613,1779522662000,-805.78,0.00010958,2]
[422850617,1779522662000,-550.5,0.00010958,2]
[422850612,1779522662000,-546.66,0.00010958,2]
[422850611,1779522662000,-500.0,0.00010958,2]
[422850618,1779522662000,-500.0,0.00010958,2]
[422850623,1779522662000,-531.93,0.00010958,2]
[422850620,1779522662000,-500.0,0.00010958,2]
[422850619,1779522662000,-973.74,0.00010958,2]
[422850622,1779522662000,-1019.6,0.00010958,2]
[422850621,1779522662000,-500.0,0.00010958,2]
[422850624,1779522662000,-500.0,0.00010958,2]
[422850569,1779522662000,-3166.04,0.00010684,2]
[422850615,1779522662000,-1669.62,0.00010958,2]
[422850600,1779522662000,-241.038328,0.00010954,2]
[422850614,1779522662000,-521.15,0.00010958,2]
[422850595,1779522662000,-645.553132,0.00010954,2]
[422850594,1779522662000,-170.963072,0.00010954,2]
[422850571,1779522662000,-698.28,0.00010684,2]
[422850567,1779522662000,-500.0,0.00010684,2]
[422850570,1779522662000,-2034.71,0.00010684,2]
[422850566,1779522662000,-4331.31,0.00010684,2]
[422850579,1779522662000,-4349.05,0.00010684,2]
[422850580,1779522662000,-53596.31,0.00010684,2]
[422850576,1779522662000,-500.0,0.00010684,2]
[422850581,1779522662000,-500.0,0.00010684,2]
[422850578,1779522662000,-1014.97,0.00010684,2]
[422850582,1779522662000,-1491.3,0.00010684,2]
[422850577,1779522662000,-500.0,0.00010684,2]
[422850575,1779522662000,-3345.98,0.00010684,2]
[422850586,1779522662000,-337.254211,0.00010685,2]
[422850583,1779522662000,-2740.95,0.00010684,2]
[422850593,1779522662000,-10158.55085257,0.000109,2]
[422850592,1779522662000,-314.0,0.000109,2]
[422850598,1779522662000,-327.564908,0.00010954,2]
[422850588,1779522662000,-10158.55085257,0.000108,2]
[422850596,1779522662000,-267.223315,0.00010954,2]
[422850591,1779522662000,-271.27354881,0.00010874,2]
[422850597,1779522662000,-445.152311,0.00010954,2]
[422850589,1779522662000,-250237.34382547,0.000108,2]
[422850587,1779522662000,-10158.55085257,0.000107,2]
[422850585,1779522662000,-500.0,0.00010685,2]
[422850590,1779522662000,-209.3078,0.00010821,2]
[422850647,1779522663000,-924.25,0.00010958,2]
[422850646,1779522663000,-1397.34,0.00010958,2]
[422850648,1779522663000,-1873.78,0.00010958,2]
[422850650,1779522663000,-500.0,0.00010958,2]
[422850649,1779522663000,-500.0,0.00010958,2]
[422850652,1779522663000,-2455.94,0.00010958,2]
[422850651,1779522663000,-500.0,0.00010958,2]
[422850653,1779522663000,-202.94736518,0.00010958,2]
[422850659,1779522663000,-500.0,0.00010958,2]
[422850657,1779522663000,-500.0,0.00010958,2]
[422850654,1779522663000,-930.87,0.00010958,2]
[422850656,1779522663000,-500.0,0.00010958,2]
[422850658,1779522663000,-1062.36,0.00010958,2]
[422850661,1779522663000,-500.0,0.00010958,2]
[422850660,1779522663000,-500.0,0.00010958,2]
[422850645,1779522663000,-500.0,0.00010958,2]
[422850665,1779522663000,-500.0,0.00010958,2]
[422850655,1779522663000,-3836.07,0.00010958,2]
[422850644,1779522663000,-500.0,0.00010958,2]
[422850632,1779522663000,-670.18,0.00010958,2]
[422850642,1779522663000,-511.26,0.00010958,2]
[422850664,1779522663000,-1044.87,0.00010958,2]
[422850626,1779522663000,-500.0,0.00010958,2]
[422850625,1779522663000,-1159.16,0.00010958,2]
[422850627,1779522663000,-500.0,0.00010958,2]
[422850628,1779522663000,-1237.95,0.00010958,2]
[422850630,1779522663000,-500.0,0.00010958,2]
[422850629,1779522663000,-500.0,0.00010958,2]
[422850633,1779522663000,-1659.56,0.00010958,2]
[422850631,1779522663000,-551.16,0.00010958,2]
[422850634,1779522663000,-500.0,0.00010958,2]
[422850635,1779522663000,-500.0,0.00010958,2]
[422850638,1779522663000,-549.31,0.00010958,2]
[422850636,1779522663000,-500.0,0.00010958,2]
[422850637,1779522663000,-760.63,0.00010958,2]
[422850640,1779522663000,-1479.12,0.00010958,2]
[422850641,1779522663000,-684.52,0.00010958,2]
[422850639,1779522663000,-1624.28,0.00010958,2]
[422850643,1779522663000,-1188.89,0.00010958,2]
[422850662,1779522663000,-500.0,0.00010958,2]
[422850663,1779522663000,-3771.01,0.00010958,2]
[422850671,1779522663000,-583.52,0.00010958,2]
[422850689,1779522663000,-500.0,0.00010958,2]
[422850691,1779522663000,-500.0,0.00010958,2]
[422850690,1779522663000,-532.29,0.00010958,2]
[422850693,1779522663000,-588.33,0.00010958,2]
[422850697,1779522663000,-500.0,0.00010958,2]
[422850694,1779522663000,-500.0,0.00010958,2]
[422850695,1779522663000,-823.17,0.00010958,2]
[422850696,1779522663000,-500.0,0.00010958,2]
[422850687,1779522663000,-601.61,0.00010958,2]
[422850698,1779522663000,-2784.25,0.00010958,2]
[422850699,1779522663000,-2673.23,0.00010958,2]
[422850701,1779522663000,-1317.26,0.00010958,2]
[422850702,1779522663000,-500.0,0.00010958,2]
[422850706,1779522663000,-500.0,0.00010958,2]
[422850703,1779522663000,-568.59,0.00010958,2]
[422850704,1779522663000,-500.0,0.00010958,2]
[422850666,1779522663000,-553.08,0.00010958,2]
[422850705,1779522663000,-2184.12,0.00010958,2]
[422850692,1779522663000,-500.0,0.00010958,2]
[422850688,1779522663000,-1062.93,0.00010958,2]
[422850700,1779522663000,-825.75,0.00010958,2]
[422850685,1779522663000,-2347.77,0.00010958,2]
[422850667,1779522663000,-848.75,0.00010958,2]
[422850686,1779522663000,-500.0,0.00010958,2]
[422850669,1779522663000,-500.0,0.00010958,2]
[422850670,1779522663000,-773.34,0.00010958,2]
[422850673,1779522663000,-500.0,0.00010958,2]
[422850672,1779522663000,-500.0,0.00010958,2]
[422850676,1779522663000,-627.4,0.00010958,2]
[422850674,1779522663000,-700.31,0.00010958,2]
[422850668,1779522663000,-1941.31,0.00010958,2]
[422850675,1779522663000,-880.84,0.00010958,2]
[422850679,1779522663000,-936.85,0.00010958,2]
[422850680,1779522663000,-500.0,0.00010958,2]
[422850678,1779522663000,-1170.48,0.00010958,2]
[422850681,1779522663000,-903.24,0.00010958,2]
[422850682,1779522663000,-603.47,0.00010958,2]
[422850683,1779522663000,-549.99,0.00010958,2]
[422850677,1779522663000,-500.0,0.00010958,2]
[422850684,1779522663000,-500.0,0.00010958,2]
[422850745,1779522664000,-3810.6,0.00010958,2]
[422850743,1779522664000,-7788.78,0.00010958,2]
[422850742,1779522664000,-617.86,0.00010958,2]
[422850747,1779522664000,-894.62,0.00010958,2]
[422850755,1779522664000,-4054.65,0.00010958,2]
[422850741,1779522664000,-1889.65,0.00010958,2]
[422850740,1779522664000,-2296.31,0.00010958,2]
[422850739,1779522664000,-3777.66,0.00010958,2]
[422850732,1779522664000,-3632.74,0.00010958,2]
[422850751,1779522664000,-4472.53,0.00010958,2]
[422850731,1779522664000,-592.52,0.00010958,2]
[422850746,1779522664000,-3408.86,0.00010958,2]
[422850744,1779522664000,-1214.59,0.00010958,2]
[422850761,1779522664000,-391.33815141,0.00010958,2]
[422850750,1779522664000,-500.0,0.00010958,2]
[422850748,1779522664000,-836.05,0.00010958,2]
[422850752,1779522664000,-500.0,0.00010958,2]
[422850753,1779522664000,-500.0,0.00010958,2]
[422850759,1779522664000,-500.0,0.00010958,2]
[422850760,1779522664000,-1573.6,0.00010958,2]
[422850762,1779522664000,-4331.31,0.00010958,2]
[422850763,1779522664000,-500.0,0.00010958,2]
[422850758,1779522664000,-500.0,0.00010958,2]
[422850754,1779522664000,-8299.03,0.00010958,2]
[422850756,1779522664000,-500.0,0.00010958,2]
[422850736,1779522664000,-500.0,0.00010958,2]
[422850749,1779522664000,-11343.66,0.00010958,2]
[422850737,1779522664000,-2635.18,0.00010958,2]
[422850724,1779522664000,-500.0,0.00010958,2]
[422850738,1779522664000,-3803.04,0.00010958,2]
[422850757,1779522664000,-2218.95,0.00010958,2]
[422850707,1779522664000,-516.78,0.00010958,2]
[422850709,1779522664000,-1342.2,0.00010958,2]
[422850710,1779522664000,-725.61,0.00010958,2]
[422850708,1779522664000,-1096.02,0.00010958,2]
[422850713,1779522664000,-7319.6,0.00010958,2]
[422850711,1779522664000,-500.0,0.00010958,2]
[422850712,1779522664000,-500.0,0.00010958,2]
[422850719,1779522664000,-3822.56,0.00010958,2]
[422850717,1779522664000,-950.0,0.00010958,2]
[422850723,1779522664000,-642.13,0.00010958,2]
[422850722,1779522664000,-500.0,0.00010958,2]
[422850730,1779522664000,-1298.03,0.00010958,2]
[422850715,1779522664000,-500.0,0.00010958,2]
[422850720,1779522664000,-500.0,0.00010958,2]
[422850726,1779522664000,-1534.57,0.00010958,2]
[422850718,1779522664000,-1906.95,0.00010958,2]
[422850721,1779522664000,-919.44,0.00010958,2]
[422850725,1779522664000,-647.49,0.00010958,2]
[422850716,1779522664000,-2370.66,0.00010958,2]
[422850728,1779522664000,-284.88845994,0.00010958,2]
[422850733,1779522664000,-11669.11,0.00010958,2]
[422850734,1779522664000,-1407.6,0.00010958,2]
[422850727,1779522664000,-762.05,0.00010958,2]
[422850735,1779522664000,-1016.89,0.00010958,2]
[422850729,1779522664000,-500.0,0.00010958,2]
[422850714,1779522664000,-5006.38,0.00010958,2]
[422850764,1779522664000,-560.81,0.00010958,2]
[422850809,1779522664000,-443.0,0.00011152,2]
[422850767,1779522664000,-698.28,0.00010958,2]
[422850796,1779522664000,-266.093255,0.00010959,2]
[422850801,1779522664000,-305.598823,0.00011005,2]
[422850798,1779522664000,-250.4,0.00011,14]
[422850799,1779522664000,-151.0,0.00011,2]
[422850802,1779522664000,-169.500783,0.00011009,2]
[422850805,1779522664000,-163.11753,0.00011064,2]
[422850806,1779522664000,-241.88591984,0.00011093,2]
[422850804,1779522664000,-199.432072,0.00011009,2]
[422850810,1779522664000,-648.0,0.00011152,2]
[422850803,1779522664000,-391.598234,0.00011009,2]
[422850808,1779522664000,-1413.0,0.00011152,2]
[422850811,1779522664000,-742.0,0.00011152,2]
[422850797,1779522664000,-371.33,0.00011,14]
[422850812,1779522664000,-204.90672,0.00011172,2]
[422850816,1779522664000,-231.244231,0.00011195,2]
[422850814,1779522664000,-150.0,0.00011174,2]
[422850815,1779522664000,-150.0,0.00011174,2]
[422850817,1779522664000,-173.74,0.000112,14]
[422850818,1779522664000,-160.0,0.000112,4]
[422850819,1779522664000,-406.3,0.000112,14]
[422850821,1779522664000,-254.827727,0.00011228,2]
[422850822,1779522664000,-200.0,0.00011231,2]
[422850820,1779522664000,-198.364531,0.00011228,2]
[422850823,1779522664000,-934.38,0.00011232,2]
[422850824,1779522664000,-623.93,0.00011232,2]
[422850765,1779522664000,-3166.04,0.00010958,2]
[422850813,1779522664000,-191.849362,0.00011172,2]
[422850791,1779522664000,-155.0,0.00010959,2]
[422850807,1779522664000,-2204.0,0.00011152,2]
[422850794,1779522664000,-155.0,0.00010959,2]
[422850800,1779522664000,-234.758146,0.00011005,2]
[422850766,1779522664000,-2034.71,0.00010958,2]
[422850769,1779522664000,-500.0,0.00010958,2]
[422850771,1779522664000,-3345.98,0.00010958,2]
[422850770,1779522664000,-500.0,0.00010958,2]
[422850772,1779522664000,-500.0,0.00010958,2]
[422850773,1779522664000,-503.70513904,0.00010958,2]
[422850774,1779522664000,-1014.97,0.00010958,2]
[422850775,1779522664000,-4349.05,0.00010958,2]
[422850777,1779522664000,-500.0,0.00010958,2]
[422850785,1779522664000,-15000.0,0.00010959,2]
[422850786,1779522664000,-155.0,0.00010959,2]
[422850779,1779522664000,-2740.95,0.00010958,2]
[422850778,1779522664000,-1491.3,0.00010958,2]
[422850768,1779522664000,-8529.45,0.00010958,2]
[422850795,1779522664000,-155.0,0.00010959,2]
[422850776,1779522664000,-53596.31,0.00010958,2]
[422850793,1779522664000,-155.0,0.00010959,2]
[422850792,1779522664000,-155.0,0.00010959,2]
[422850790,1779522664000,-155.0,0.00010959,2]
[422850782,1779522664000,-313.90125823,0.00010959,7]
[422850789,1779522664000,-155.0,0.00010959,2]
[422850781,1779522664000,-529.38991826,0.00010959,2]
[422850788,1779522664000,-155.0,0.00010959,2]
[422850784,1779522664000,-500.0,0.00010959,2]
[422850780,1779522664000,-891.69,0.00010958,2]
[422850783,1779522664000,-158.27498993,0.00010959,5]
[422850787,1779522664000,-155.0,0.00010959,2]
[422850864,1779522665000,-500.0,0.00011232,2]
[422850868,1779522665000,-500.0,0.00011232,2]
[422850861,1779522665000,-511.26,0.00011232,2]
[422850860,1779522665000,-684.52,0.00011232,2]
[422850865,1779522665000,-1397.34,0.00011232,2]
[422850850,1779522665000,-551.16,0.00011232,2]
[422850858,1779522665000,-1624.28,0.00011232,2]
[422850857,1779522665000,-549.31,0.00011232,2]
[422850867,1779522665000,-1873.78,0.00011232,2]
[422850853,1779522665000,-500.0,0.00011232,2]
[422850863,1779522665000,-500.0,0.00011232,2]
[422850884,1779522665000,-553.08,0.00011232,2]
[422850862,1779522665000,-1188.89,0.00011232,2]
[422850872,1779522665000,-930.87,0.00011232,2]
[422850870,1779522665000,-500.0,0.00011232,2]
[422850871,1779522665000,-2455.94,0.00011232,2]
[422850875,1779522665000,-500.0,0.00011232,2]
[422850876,1779522665000,-1062.36,0.00011232,2]
[422850874,1779522665000,-500.0,0.00011232,2]
[422850873,1779522665000,-3836.07,0.00011232,2]
[422850877,1779522665000,-500.0,0.00011232,2]
[422850878,1779522665000,-500.0,0.00011232,2]
[422850879,1779522665000,-500.0,0.00011232,2]
[422850880,1779522665000,-500.0,0.00011232,2]
[422850881,1779522665000,-3771.01,0.00011232,2]
[422850882,1779522665000,-1044.87,0.00011232,2]
[422850866,1779522665000,-924.25,0.00011232,2]
[422850852,1779522665000,-1659.56,0.00011232,2]
[422850825,1779522665000,-500.0,0.00011232,2]
[422850856,1779522665000,-760.63,0.00011232,2]
[422850826,1779522665000,-1764.2063,0.00011232,2]
[422850828,1779522665000,-1764.2063,0.00011232,2]
[422850827,1779522665000,-882.1112,0.00011232,2]
[422850829,1779522665000,-661.5754,0.00011232,2]
[422850830,1779522665000,-500.0,0.00011232,2]
[422850831,1779522665000,-546.66,0.00011232,2]
[422850832,1779522665000,-805.78,0.00011232,2]
[422850843,1779522665000,-500.0,0.00011232,2]
[422850842,1779522665000,-531.93,0.00011232,2]
[422850836,1779522665000,-550.5,0.00011232,2]
[422850837,1779522665000,-500.0,0.00011232,2]
[422850834,1779522665000,-1669.62,0.00011232,2]
[422850851,1779522665000,-670.18,0.00011232,2]
[422850835,1779522665000,-521.99,0.00011232,2]
[422850838,1779522665000,-973.74,0.00011232,2]
[422850844,1779522665000,-1159.16,0.00011232,2]
[422850841,1779522665000,-1019.6,0.00011232,2]
[422850839,1779522665000,-500.0,0.00011232,2]
[422850840,1779522665000,-621.6857578,0.00011232,2]
[422850845,1779522665000,-500.0,0.00011232,2]
[422850847,1779522665000,-1237.95,0.00011232,2]
[422850848,1779522665000,-500.0,0.00011232,2]
[422850854,1779522665000,-500.0,0.00011232,2]
[422850846,1779522665000,-500.0,0.00011232,2]
[422850855,1779522665000,-500.0,0.00011232,2]
[422850849,1779522665000,-500.0,0.00011232,2]
[422850833,1779522665000,-521.15,0.00011232,2]
[422850888,1779522665000,-773.34,0.00011232,2]
[422850859,1779522665000,-1479.12,0.00011232,2]
[422850887,1779522665000,-500.0,0.00011232,2]
[422850915,1779522665000,-218.30358688,0.00011232,2]
[422850919,1779522665000,-1317.26,0.00011232,2]
[422850924,1779522665000,-500.0,0.00011232,2]
[422850923,1779522665000,-2184.12,0.00011232,2]
[422850920,1779522665000,-500.0,0.00011232,2]
[422850922,1779522665000,-500.0,0.00011232,2]
[422850925,1779522665000,-516.78,0.00011232,2]
[422850921,1779522665000,-568.59,0.00011232,2]
[422850928,1779522665000,-725.61,0.00011232,2]
[422850927,1779522665000,-1342.2,0.00011232,2]
[422850926,1779522665000,-1096.02,0.00011232,2]
[422850929,1779522665000,-500.0,0.00011232,2]
[422850931,1779522665000,-7319.6,0.00011232,2]
[422850930,1779522665000,-500.0,0.00011232,2]
[422850933,1779522665000,-500.0,0.00011232,2]
[422850934,1779522665000,-2370.66,0.00011232,2]
[422850932,1779522665000,-5006.38,0.00011232,2]
[422850935,1779522665000,-950.0,0.00011232,2]
[422850936,1779522665000,-1906.95,0.00011232,2]
[422850937,1779522665000,-3822.56,0.00011232,2]
[422850938,1779522665000,-500.0,0.00011232,2]
[422850940,1779522665000,-500.0,0.00011232,2]
[422850939,1779522665000,-919.44,0.00011232,2]
[422850942,1779522665000,-500.0,0.00011232,2]
[422850941,1779522665000,-642.13,0.00011232,2]
[422850943,1779522665000,-647.49,0.00011232,2]
[422850885,1779522665000,-848.75,0.00011232,2]
[422850908,1779522665000,-532.29,0.00011232,2]
[422850916,1779522665000,-2784.25,0.00011232,2]
[422850869,1779522665000,-500.0,0.00011232,2]
[422850913,1779522665000,-823.17,0.00011232,2]
[422850890,1779522665000,-500.0,0.00011232,2]
[422850891,1779522665000,-500.0,0.00011232,2]
[422850889,1779522665000,-583.52,0.00011232,2]
[422850883,1779522665000,-500.0,0.00011232,2]
[422850892,1779522665000,-700.31,0.00011232,2]
[422850893,1779522665000,-880.84,0.00011232,2]
[422850894,1779522665000,-627.4,0.00011232,2]
[422850898,1779522665000,-500.0,0.00011232,2]
[422850896,1779522665000,-1170.48,0.00011232,2]
[422850895,1779522665000,-500.0,0.00011232,2]
[422850897,1779522665000,-936.85,0.00011232,2]
[422850899,1779522665000,-903.24,0.00011232,2]
[422850912,1779522665000,-500.0,0.00011232,2]
[422850886,1779522665000,-1941.31,0.00011232,2]
[422850901,1779522665000,-549.99,0.00011232,2]
[422850900,1779522665000,-603.47,0.00011232,2]
[422850917,1779522665000,-2673.23,0.00011232,2]
[422850914,1779522665000,-500.0,0.00011232,2]
[422850918,1779522665000,-825.75,0.00011232,2]
[422850909,1779522665000,-500.0,0.00011232,2]
[422850910,1779522665000,-500.0,0.00011232,2]
[422850911,1779522665000,-588.33,0.00011232,2]
[422850906,1779522665000,-1062.93,0.00011232,2]
[422850902,1779522665000,-500.0,0.00011232,2]
[422850905,1779522665000,-601.61,0.00011232,2]
[422850904,1779522665000,-500.0,0.00011232,2]
[422850903,1779522665000,-2347.77,0.00011232,2]
[422850907,1779522665000,-500.0,0.00011232,2]
[422850990,1779522666000,-4349.05,0.00011232,2]
[422850991,1779522666000,-53596.31,0.00011232,2]
[422850982,1779522666000,-2034.71,0.00011232,2]
[422850987,1779522666000,-3345.98,0.00011232,2]
[422850985,1779522666000,-500.0,0.00011232,2]
[422850973,1779522666000,-206.12483776,0.00011232,2]
[422850980,1779522666000,-560.81,0.00011232,2]
[422850979,1779522666000,-500.0,0.00011232,2]
[422850974,1779522666000,-2218.95,0.00011232,2]
[422850977,1779522666000,-1573.6,0.00011232,2]
[422850981,1779522666000,-3166.04,0.00011232,2]
[422850986,1779522666000,-500.0,0.00011232,2]
[422850989,1779522666000,-1014.97,0.00011232,2]
[422850997,1779522666000,-618.460846,0.00011277,2]
[422850988,1779522666000,-500.0,0.00011232,2]
[422850992,1779522666000,-500.0,0.00011232,2]
[422850993,1779522666000,-1491.3,0.00011232,2]
[422850994,1779522666000,-2740.95,0.00011232,2]
[422850995,1779522666000,-891.69,0.00011232,2]
[422850996,1779522666000,-500.0,0.00011233,2]
[422850998,1779522666000,-548.340099,0.00011277,2]
[422850999,1779522666000,-350.89412,0.00011333,2]
[422851000,1779522666000,-162.0,0.00011376,2]
[422851004,1779522666000,-159.89753589,0.00011484,2]
[422851003,1779522666000,-885.3605921,0.00011431,2]
[422851001,1779522666000,-5110.0,0.00011376,2]
[422850975,1779522666000,-500.0,0.00011232,2]
[422850983,1779522666000,-698.28,0.00011232,2]
[422850969,1779522666000,-500.0,0.00011232,2]
[422850962,1779522666000,-3810.6,0.00011232,2]
[422850971,1779522666000,-8299.03,0.00011232,2]
[422850955,1779522666000,-3803.04,0.00011232,2]
[422850945,1779522666000,-762.05,0.00011232,2]
[422850946,1779522666000,-531.3153712,0.00011232,2]
[422850954,1779522666000,-2635.18,0.00011232,2]
[422850948,1779522666000,-592.52,0.00011232,2]
[422850947,1779522666000,-1298.03,0.00011232,2]
[422850944,1779522666000,-1534.57,0.00011232,2]
[422850949,1779522666000,-3632.74,0.00011232,2]
[422850951,1779522666000,-1407.6,0.00011232,2]
[422850953,1779522666000,-500.0,0.00011232,2]
[422850950,1779522666000,-11669.11,0.00011232,2]
[422850952,1779522666000,-1016.89,0.00011232,2]
[422850965,1779522666000,-836.05,0.00011232,2]
[422850978,1779522666000,-4331.31,0.00011232,2]
[422850957,1779522666000,-2296.31,0.00011232,2]
[422851005,1779522666000,-200.40686215,0.00011505,2]
[422850959,1779522666000,-617.86,0.00011232,2]
[422850963,1779522666000,-3408.86,0.00011232,2]
[422850960,1779522666000,-7788.78,0.00011232,2]
[422850961,1779522666000,-1214.59,0.00011232,2]
[422850964,1779522666000,-894.62,0.00011232,2]
[422850958,1779522666000,-1889.65,0.00011232,2]
[422850966,1779522666000,-11343.66,0.00011232,2]
[422850967,1779522666000,-500.0,0.00011232,2]
[422850968,1779522666000,-4472.53,0.00011232,2]
[422850972,1779522666000,-4054.65,0.00011232,2]
[422850976,1779522666000,-500.0,0.00011232,2]
[422850970,1779522666000,-500.0,0.00011232,2]
[422850956,1779522666000,-3777.66,0.00011232,2]
[422851002,1779522666000,-196.0,0.00011376,2]
[422850984,1779522666000,-8529.45,0.00011232,2]
[422851014,1779522666000,-546.66,0.00011506,2]
[422851035,1779522666000,-500.0,0.00011506,2]
[422851041,1779522666000,-1479.12,0.00011506,2]
[422851043,1779522666000,-511.26,0.00011506,2]
[422851040,1779522666000,-1624.28,0.00011506,2]
[422851042,1779522666000,-684.52,0.00011506,2]
[422851039,1779522666000,-549.31,0.00011506,2]
[422851048,1779522666000,-924.25,0.00011506,2]
[422851047,1779522666000,-1397.34,0.00011506,2]
[422851046,1779522666000,-500.0,0.00011506,2]
[422851049,1779522666000,-1873.78,0.00011506,2]
[422851055,1779522666000,-3836.07,0.00011506,2]
[422851053,1779522666000,-2455.94,0.00011506,2]
[422851056,1779522666000,-500.0,0.00011506,2]
[422851051,1779522666000,-500.0,0.00011506,2]
[422851050,1779522666000,-500.0,0.00011506,2]
[422851052,1779522666000,-500.0,0.00011506,2]
[422851058,1779522666000,-1062.36,0.00011506,2]
[422851057,1779522666000,-500.0,0.00011506,2]
[422851054,1779522666000,-930.87,0.00011506,2]
[422851066,1779522666000,-553.08,0.00011506,2]
[422851067,1779522666000,-848.75,0.00011506,2]
[422851068,1779522666000,-1941.31,0.00011506,2]
[422851059,1779522666000,-500.0,0.00011506,2]
[422851061,1779522666000,-500.0,0.00011506,2]
[422851064,1779522666000,-1044.87,0.00011506,2]
[422851063,1779522666000,-3771.01,0.00011506,2]
[422851060,1779522666000,-500.0,0.00011506,2]
[422851062,1779522666000,-500.0,0.00011506,2]
[422851007,1779522666000,-623.93,0.00011506,2]
[422851036,1779522666000,-392.79830891,0.00011506,2]
[422851037,1779522666000,-500.0,0.00011506,2]
[422851065,1779522666000,-500.0,0.00011506,2]
[422851033,1779522666000,-670.18,0.00011506,2]
[422851038,1779522666000,-760.63,0.00011506,2]
[422851009,1779522666000,-1764.2063,0.00011506,2]
[422851013,1779522666000,-500.0,0.00011506,2]
[422851017,1779522666000,-1669.62,0.00011506,2]
[422851012,1779522666000,-661.5754,0.00011506,2]
[422851006,1779522666000,-934.38,0.00011506,2]
[422851015,1779522666000,-805.78,0.00011506,2]